bitfinex-derivatives/quotes_ETHF0:USTF0_20250531
["timestamp","ask_amount","ask_price","bid_price","bid_amount"]
[1748683009598,0.79159,2525.6,2525.5,0.6814]
[1748683011199,0.79159,2525.6,2525.5,1.47302]
[1748683011399,0.79159,2525.6,2525.5,2.79542]
[1748683022906,0.79159,2525.6,2525.5,2.0038]
[1748683023719,0.79159,2525.6,2525.5,2.79542]
[1748683034725,0.79162,2525.5,2525.4,3.99945]
[1748683035114,0.79162,2525.5,2525.4,4.61835]
[1748683036220,0.79162,2525.5,2525.4,5.96125]
[1748683037826,0.79162,2525.5,2525.4,2.75345]
[1748683038024,0.79162,2525.5,2525.4,5.1696]
[1748683038519,0.79162,2525.5,2525.4,3.2078]
[1748683038927,1.47172,2525.5,2525.4,3.2078]
[1748683039128,1.66962,2525.5,2525.4,3.2078]
[1748683039630,0.00593178,2525.8,2525.7,0.79155]
[1748683039820,0.00593178,2525.8,2525.7,3.99935]
[1748683040127,2.36897675,2526.3,2526.2,0.7914]
[1748683040325,0.6801,2526.5,2526.4,0.79134]
[1748683040522,2.36897675,2526.7,2526.6,0.79127]
[1748683040820,3.15992415,2527.0,2526.7,0.79121]
[1748683041024,0.79124,2526.7,2526.6,0.79718178]
[1748683041229,0.7912,2526.9,2526.8,0.79118]
[1748683041424,2.71807,2527.0,2526.9,0.79118]
[1748683042825,0.79112,2527.2,2527.1,0.79111]
[1748683043221,1.02102367,2527.2,2527.1,0.79111]
[1748683043423,1.2731,2527.3,2527.2,0.79108]
[1748683043926,0.79108,2527.2,2527.1,0.79109]
[1748683044222,2.06417,2527.3,2527.2,0.79108]
[1748683044631,1.2731,2527.3,2526.8,3.2078]
[1748683044827,1.2731,2527.3,2527.1,0.79111]
[1748683045028,3.2078,2527.5,2527.1,3.2078]
[1748683045231,0.79105,2527.4,2527.2,1.3623]
[1748683045419,0.79108,2527.2,2527.1,3.2078]
[1748683046123,2.15698,2527.2,2527.1,3.2078]
[1748683046528,2.15698,2527.2,2527.1,3.99892]
[1748683047231,2.15698,2527.2,2527.1,3.2078]
[1748683047837,0.79112,2527.1,2527.0,0.79112]
[1748683048025,1.3659,2527.2,2527.1,0.79112]
[1748683048227,0.7911,2527.2,2527.1,0.7911]
[1748683049526,1.42118,2527.3,2527.2,0.79108]
[1748683049730,0.79108,2527.2,2527.1,2.1013]
[1748683049920,0.6301,2527.3,2527.1,2.1013]
[1748683050125,0.79108,2527.2,2527.1,2.1013]
[1748683050829,0.79112,2527.1,2527.0,3.2078]
[1748683051436,0.79112,2527.1,2527.0,3.99895]
[1748683052135,0.79112,2527.1,2527.0,3.2078]
[1748683053735,0.79112,2527.1,2527.0,3.99895]
[1748683053936,0.79112,2527.1,2527.0,3.2078]
[1748683054127,0.79112,2527.1,2527.0,3.99895]
[1748683054328,0.79112,2527.1,2527.0,3.2078]
[1748683055635,0.79112,2527.1,2527.0,3.99895]
[1748683057139,0.79112,2527.1,2527.0,3.2078]
[1748683057338,0.79112,2527.1,2527.0,3.99895]
[1748683059738,0.79112,2527.1,2527.0,3.2078]
[1748683059936,0.79112,2527.1,2527.0,0.79115]
[1748683060137,0.6301,2527.3,2527.0,3.2078]
[1748683060339,0.79101,2527.5,2527.4,0.79099]
[1748683060639,0.79099,2527.6,2527.5,0.79097]
[1748683062445,0.79102,2527.5,2527.4,0.791]
[1748683062744,0.79102,2527.4,2527.3,3.99883]
[1748683063041,0.79102,2527.4,2527.3,3.2078]
[1748683063642,2.13132,2527.4,2527.3,3.2078]
[1748683066243,2.13132,2527.4,2527.1,1.8975]
[1748683066244,0.79114,2527.1,2526.9,3.903]
[1748683066439,1.97767,2527.3,2526.8,7.1108]
[1748683066641,0.79114,2527.1,2527.0,0.79113]
[1748683067947,0.79106,2527.3,2527.2,0.79108]
[1748683068242,0.79105,2527.4,2527.3,0.79104]
[1748683069141,3.2078,2527.7,2527.1,6.4993]
[1748683069343,0.79101,2527.5,2527.4,0.79098]
[1748683071243,0.79101,2527.5,2527.4,2.11538]
[1748683072139,0.79099,2527.6,2527.5,0.79097]
[1748683072341,0.79099,2527.6,2527.3,1.47103]
[1748683072342,0.79102,2527.4,2527.3,1.47103]
[1748683072842,0.79102,2527.4,2527.3,0.68]
[1748683073447,0.79102,2527.4,2527.3,1.47105]
[1748683074545,0.79102,2527.5,2527.4,0.79098]
[1748683074744,0.6373,2527.7,2527.4,6.49525]
[1748683074945,0.79095,2527.8,2527.7,0.7909]
[1748683076349,0.79097,2527.7,2527.6,0.79094]
[1748683078149,0.79099,2527.6,2527.5,0.79096]
[1748683078850,0.79099,2527.6,2527.5,2.15146]
[1748683083157,0.79099,2527.6,2527.5,5.35926]
[1748683083662,1.97687,2528.3,2527.7,1.97733]
[1748683083854,1.97687,2528.3,2527.5,8.3973]
[1748683083855,0.79084,2528.1,2528.0,0.7908]
[1748683085561,0.79084,2528.1,2528.0,2.1291]
[1748683086265,0.79096,2527.6,2527.5,3.903]
[1748683086458,0.79099,2527.5,2527.4,7.82781]
[1748683086862,0.79099,2527.5,2527.4,7.0368]
[1748683087062,0.79099,2527.5,2527.4,3.2078]
[1748683087663,0.79099,2527.5,2527.4,3.99882]
[1748683087866,0.79099,2527.5,2527.4,3.2078]
[1748683088065,0.79107,2527.3,2527.2,0.79106]
[1748683088371,0.79109,2527.2,2527.1,5.35429]
[1748683088665,0.79107,2527.3,2527.2,0.79106]
[1748683088866,1.42735,2527.4,2527.3,0.79104]
[1748683089164,2.78545,2527.4,2527.3,0.79104]
[1748683089667,0.6363,2527.4,2527.3,3.99884]
[1748683089966,1.42732,2527.4,2527.3,3.99884]
[1748683090767,1.42732,2527.4,2527.3,3.2078]
[1748683090958,0.79105,2527.3,2527.2,1.333]
[1748683091164,0.79109,2527.2,2527.1,0.6602]
[1748683091465,2.14921,2527.2,2527.0,3.2078]
[1748683091663,0.79107,2527.3,2527.2,0.79105]
[1748683093267,1.42734,2527.4,2527.3,0.79105]
[1748683093670,0.79109,2527.3,2527.2,0.79107]
[1748683094662,0.79105,2527.4,2527.3,0.79102]
[1748683094864,2.77242,2527.5,2527.4,0.79102]
[1748683095170,0.79097,2527.7,2527.6,0.79093]
[1748683095367,0.79099,2527.6,2527.5,0.79097]
[1748683101266,2.04485,2527.7,2527.6,0.79096]
[1748683101475,1.2539,2527.7,2527.6,0.79096]
[1748683101770,2.04483,2527.7,2527.6,0.79096]
[1748683102567,0.79096,2527.6,2527.5,1.2693]
[1748683102772,0.79102,2527.5,2527.4,0.791]
[1748683103073,0.79102,2527.5,2527.3,3.8349]
[1748683103074,0.79102,2527.4,2527.3,3.2078]
[1748683103471,2.15622,2527.4,2527.3,3.2078]
[1748683103771,2.15622,2527.4,2527.3,3.99885]
[1748683104673,2.15622,2527.4,2527.3,3.2078]
[1748683106375,2.15622,2527.4,2527.3,3.99885]
[1748683106871,0.79102,2527.5,2527.4,0.79102]
[1748683107379,0.79102,2527.4,2527.3,3.99884]
[1748683113590,0.79102,2527.4,2527.3,3.2078]
[1748683115991,0.79112,2527.1,2527.0,3.2078]
[1748683116194,0.79118,2526.9,2526.8,0.6512]
[1748683117299,1.44138,2526.9,2526.8,0.6512]
[1748683118897,0.79124,2526.7,2526.6,6.53889178]
[1748683119192,0.79124,2526.7,2526.6,0.00593178]
[1748683119798,2.13784,2526.7,2526.6,0.00593178]
[1748683120101,0.79137,2526.3,2526.2,0.6475]
[1748683122299,0.79136,2526.4,2526.3,0.79137]
[1748683122691,0.79137,2526.3,2526.2,2.74627]
[1748683123396,0.79136,2526.4,2526.3,0.79134]
[1748683123598,0.79136,2526.4,2526.3,2.09874]
[1748683123801,0.79726178,2526.5,2526.4,0.79134]
[1748683123999,0.79726178,2526.5,2526.4,1.3074]
[1748683125194,0.00593178,2526.5,2526.4,2.09874]
[1748683125990,0.79723178,2526.5,2526.4,2.09874]
[1748683126201,0.79723178,2526.5,2526.4,1.3074]
[1748683126805,0.79137,2526.3,2526.2,4.5505]
[1748683126994,0.79137,2526.3,2526.2,3.903]
[1748683127500,2.03077,2526.3,2526.2,3.903]
[1748683127896,0.79143,2526.1,2526.0,0.00593178]
[1748683129502,0.79143,2526.1,2526.0,0.79739178]
[1748683129704,2.03082,2526.2,2526.0,0.79739178]
[1748683129900,0.79143,2526.1,2526.0,0.79739178]
[1748683130705,3.83293178,2526.5,2526.0,0.00593178]
[1748683130904,0.79134,2526.4,2526.3,0.79135]
[1748683131100,0.79137,2526.3,2526.2,2.06518]
[1748683133307,0.79137,2526.3,2526.2,1.2738]
[1748683133508,0.7914,2526.2,2526.1,4.5008]
[1748683133708,0.7914,2526.2,2526.1,2.08443]
[1748683134710,0.79139,2526.3,2526.2,0.79137]
[1748683135800,0.79139,2526.3,2526.2,2.04177]
[1748683136010,0.79139,2526.3,2526.2,1.2504]
[1748683136209,0.7914,2526.2,2526.1,2.08441]
[1748683138314,0.7914,2526.2,2526.1,3.38141]
[1748683138914,3.21345,2526.4,2526.2,0.79137]
[1748683138915,0.79138,2526.3,2526.2,0.79137]
[1748683139111,0.79137,2526.4,2526.3,0.79134]
[1748683139410,0.79137,2526.3,2526.2,2.08838]
[1748683140510,0.7914,2526.2,2526.1,2.08441]
[1748683140906,0.7914,2526.2,2526.1,3.38581]
[1748683141104,0.7914,2526.2,2526.1,2.5944]
[1748683141511,0.7914,2526.2,2526.1,3.38583]
[1748683141909,0.00593178,2526.5,2526.1,2.5944]
[1748683142106,0.00593178,2526.5,2526.4,0.79134]
[1748683142309,0.00593178,2526.5,2526.4,2.09274]
[1748683143015,0.00593178,2526.5,2526.4,7.09274]
[1748683143209,0.79109,2527.2,2527.1,0.79112]
[1748683143414,0.79114,2527.1,2527.0,0.79112]
[1748683143706,0.79103,2527.4,2527.3,0.79103]
[1748683144314,0.79103,2527.4,2527.3,1.3325]
[1748683145113,0.79105,2527.3,2527.2,3.2078]
[1748683145308,0.79115,2527.0,2526.9,4.5637]
[1748683145507,0.79115,2527.0,2526.9,3.903]
[1748683145713,0.79115,2527.0,2526.9,6.02668]
[1748683146212,0.79114,2527.1,2527.0,0.79115]
[1748683146412,0.79115,2527.0,2526.9,5.2355]
[1748683146613,0.79115,2527.0,2526.9,3.903]
[1748683147616,1.46325,2527.0,2526.9,3.903]
[1748683147816,1.97806,2526.8,2526.3,5.8135]
[1748683148118,0.79134,2526.4,2526.3,7.24235]
[1748683148313,0.79132,2526.5,2526.4,0.79133]
[1748683148508,0.79129,2526.6,2526.3,2.623]
[1748683148709,0.79131,2526.5,2526.4,0.79131]
[1748683149313,0.79134,2526.4,2526.3,3.41435]
[1748683149520,0.79134,2526.4,2526.3,1.42885]
[1748683149815,0.7913,2526.6,2526.5,0.7913]
[1748683150014,0.79132,2526.5,2526.4,0.79132]
[1748683150219,0.79134,2526.4,2526.3,1.9071]
[1748683150711,0.79134,2526.4,2526.3,1.42887]
[1748683152120,0.79133,2526.5,2526.4,0.79133]
[1748683152320,3.24742,2526.6,2526.2,3.2078]
[1748683152511,0.79137,2526.3,2526.2,3.2078]
[1748683152921,2.13147,2526.3,2526.2,3.2078]
[1748683153622,0.79131,2526.5,2526.4,0.79134]
[1748683153923,1.9974,2526.8,2526.3,2.62562]
[1748683154224,3.97544,2526.8,2526.4,1.3481]
[1748683154421,0.7913,2526.5,2526.4,2.13941]
[1748683155225,1.9974,2526.8,2526.5,0.79129]
[1748683155527,2.78863,2526.8,2526.7,0.79124]
[1748683156427,0.79125,2526.7,2526.6,0.79125]
[1748683156628,0.79127,2526.6,2526.5,1.4502]
[1748683156824,1.97811,2526.7,2526.3,1.43854]
[1748683157019,0.79134,2526.4,2526.3,1.43854]
[1748683157516,0.79133,2526.5,2526.4,0.79131]
[1748683157919,0.79133,2526.5,2526.4,2.05981]
[1748683158122,0.79133,2526.5,2526.4,1.2685]
[1748683158429,0.79134,2526.4,2526.3,0.6472]
[1748683158725,0.79134,2526.4,2526.3,1.43856]
[1748683158923,0.79134,2526.4,2526.3,2.80356]
[1748683160125,0.79133,2526.5,2526.4,0.7913]
[1748683160326,1.302,2526.6,2526.3,2.0122]
[1748683160523,0.79134,2526.5,2526.4,0.79131]
[1748683162931,0.79134,2526.4,2526.3,2.80355]
[1748683164132,0.79134,2526.5,2526.4,0.79132]
[1748683164640,0.79134,2526.4,2526.3,2.80355]
[1748683165734,0.79134,2526.4,2526.3,2.0122]
[1748683165932,0.79137,2526.3,2526.2,3.2078]
[1748683166133,0.79143,2526.1,2526.0,0.00593178]
[1748683166824,2.13333,2526.1,2526.0,0.00593178]
[1748683168240,0.79156,2525.7,2525.6,3.2078]
[1748683168737,0.79165,2525.4,2525.3,3.2078]
[1748683168930,0.79168,2525.3,2525.2,1.3137]
[1748683169136,0.79174,2525.1,2525.0,7.0348]
[1748683169329,0.79174,2525.1,2525.0,8.3758]
[1748683169535,0.79174,2525.1,2525.0,4.5488]
[1748683169740,0.79174,2525.1,2525.0,3.2078]
[1748683170033,0.79181,2524.9,2524.8,0.00593178]
[1748683174742,0.7919,2524.6,2524.5,3.2078]
[1748683175240,0.79199,2524.3,2524.2,3.2078]
[1748683178438,0.79206,2524.1,2524.0,2.13581178]
[1748683178640,0.79205,2524.2,2524.1,0.79205]
[1748683178940,0.79206,2524.1,2524.0,3.38049178]
[1748683179337,0.79205,2524.2,2524.1,0.79206]
[1748683179539,0.79206,2524.1,2524.0,3.38050178]
[1748683180736,0.79205,2524.2,2524.1,0.79205]
[1748683181241,0.79206,2524.1,2524.0,3.38050178]
[1748683181540,0.79206,2524.1,2524.0,3.38049178]
[1748683182337,0.79206,2524.1,2524.0,1.34373178]
[1748683182540,1.98034,2523.9,2523.3,7.90308]
[1748683182737,0.79228,2523.4,2523.3,1.2698]
[1748683183249,1.274,2523.8,2523.3,1.2698]
[1748683183542,0.79228,2523.4,2523.3,4.48354377]
[1748683183743,1.27994377,2523.8,2523.3,4.48354377]
[1748683183744,0.79228,2523.5,2523.4,0.79228]
[1748683183944,0.79228,2523.5,2523.3,4.48354377]
[1748683184133,1.27994377,2523.8,2523.5,0.79225]
[1748683184336,0.79221,2523.6,2523.5,0.79225]
[1748683184538,0.79219,2523.7,2523.6,0.79221]
[1748683185243,0.00594377,2523.8,2523.7,0.79218]
[1748683185443,0.00594377,2523.8,2523.7,2.82408]
[1748683185645,0.00594377,2523.8,2523.7,3.47348]
[1748683186744,0.79809377,2523.8,2523.7,3.47348]
[1748683186943,0.79809377,2523.8,2523.7,2.6813]
[1748683187245,0.79809377,2523.8,2523.7,3.47348]
[1748683187434,0.79809377,2523.8,2523.7,2.6813]
[1748683187638,0.79218,2523.7,2523.6,3.2146819]
[1748683189348,3.99998,2523.7,2523.6,0.07843529]
[1748683189737,5.35328,2523.7,2523.6,0.07843529]
[1748683190048,0.79228,2523.4,2523.3,0.00594377]
[1748683191452,2.14558,2523.4,2523.3,0.00594377]
[1748683191947,5.97458,2523.4,2523.3,0.00594377]
[1748683193143,6.20521612,2523.4,2523.3,0.00594377]
[1748683194050,0.23063612,2523.4,2523.3,0.79825377]
[1748683194240,1.02291612,2523.4,2523.3,0.00594377]
[1748683194645,0.7924,2523.0,2522.9,4.5069]
[1748683195049,0.7924,2523.0,2522.9,3.8522]
[1748683195648,0.7924,2523.0,2522.6,0.79251]
[1748683195649,0.7925,2522.7,2522.6,3.2078]
[1748683196846,0.79253,2522.6,2522.5,1.2819]
[1748683197251,0.79256,2522.5,2522.4,0.00594377]
[1748683200044,0.79256,2522.5,2522.4,2.13403377]
[1748683200248,0.79256,2522.5,2522.4,1.34144377]
[1748683200551,0.79256,2522.5,2522.4,2.13403377]
[1748683200955,0.79255,2522.6,2522.5,0.79256]
[1748683201158,0.79256,2522.5,2522.4,3.21374377]
[1748683201359,0.79256,2522.5,2522.4,0.00594377]
[1748683202157,0.6641,2522.9,2522.4,5.19520377]
[1748683202458,0.6641,2522.9,2522.7,3.2078]
[1748683202753,0.79246,2522.8,2522.7,3.2078]
[1748683203867,0.99056,2522.8,2522.7,3.2078]
[1748683204069,0.99056,2522.8,2522.7,4.4654]
[1748683204662,0.99056,2522.8,2522.7,5.32945339]
[1748683204861,0.99056,2522.8,2522.7,4.53695339]
[1748683206864,0.99056,2522.8,2522.7,0.07155339]
[1748683207471,1.63426,2522.8,2522.7,0.07155339]
[1748683207674,1.86461274,2522.8,2522.7,0.07155339]
[1748683207867,1.63426,2522.8,2522.7,0.07155339]
[1748683210377,0.99056,2522.8,2522.7,0.07155339]
[1748683211574,2.16689893,2522.8,2522.7,0.07155339]
[1748683211769,1.37443893,2522.8,2522.7,0.86405339]
[1748683211970,0.1981,2522.8,2522.7,0.86405339]
[1748683212572,0.1981,2522.8,2522.7,1.53715339]
[1748683212778,0.1981,2522.8,2522.7,4.74495339]
[1748683213981,4.11463612,2523.4,2522.7,12.85545339]
[1748683214179,0.79233,2523.3,2523.2,3.2078]
[1748683215381,0.79234,2523.2,2523.1,1.3685]
[1748683215782,0.7924,2523.0,2522.9,3.2078]
[1748683216672,0.7924,2523.0,2522.9,4.00023]
[1748683216873,0.7924,2523.0,2522.9,5.27073]
[1748683217184,0.7924,2523.0,2522.9,4.4783]
[1748683218176,0.79239,2523.1,2523.0,0.79239]
[1748683218377,0.79239,2523.1,2523.0,2.06289]
[1748683218780,0.79235,2523.2,2523.1,0.79236]
[1748683218977,0.79236,2523.2,2523.1,0.79236]
[1748683219778,0.1981,2523.3,2523.0,1.2705]
[1748683219779,0.79237,2523.1,2523.0,1.2705]
[1748683220884,0.79237,2523.1,2523.0,1.34205339]
[1748683221580,0.79237,2523.1,2523.0,2.13445339]
[1748683222781,0.1981,2523.3,2523.0,1.34205339]
[1748683222978,0.1981,2523.3,2523.2,4.00014]
[1748683223874,0.99041,2523.3,2523.2,3.2078]
[1748683224482,0.79237,2523.1,2523.0,6.03743339]
[1748683225289,0.1981,2523.3,2523.0,5.24505339]
[1748683225585,0.1981,2523.3,2523.2,4.00014]
[1748683226785,0.79231,2523.3,2523.2,0.79234]
[1748683226984,0.79231,2523.3,2523.2,4.00014]
[1748683227987,0.79231,2523.3,2523.2,3.2078]
[1748683228187,0.79237,2523.2,2523.1,0.79235]
[1748683229788,1.312,2523.3,2523.0,2.13443339]
[1748683229789,0.79237,2523.1,2523.0,2.13443339]
[1748683234092,0.79237,2523.1,2523.0,1.34205339]
[1748683234391,0.79237,2523.1,2523.0,0.86395339]
[1748683234591,0.79237,2523.1,2523.0,0.07155339]
[1748683234792,2.08547,2523.1,2523.0,0.07155339]
[1748683237285,2.08547,2523.1,2523.0,0.86395339]
[1748683237597,2.08547,2523.1,2523.0,0.07155339]
[1748683238589,0.79237,2523.1,2523.0,0.07155339]
[1748683238788,2.05037,2523.1,2523.0,0.07155339]
[1748683241099,7.05037,2523.1,2523.0,0.07155339]
[1748683241293,2.05037,2523.1,2523.0,0.07155339]
[1748683242198,3.21852036,2523.1,2523.0,0.07155339]
[1748683245498,1.96052036,2523.1,2523.0,0.07155339]
[1748683245698,0.79237,2523.1,2523.0,0.07155339]
[1748683246103,2.11557,2523.1,2523.0,0.07155339]
[1748683248404,3.28353856,2523.1,2523.0,0.07155339]
[1748683251111,21.46153856,2523.1,2523.0,0.07155339]
[1748683252312,3.28353856,2523.1,2523.0,0.07155339]
[1748683252510,21.45853856,2523.1,2523.0,0.07155339]
[1748683252808,7.15853856,2523.1,2523.0,0.07155339]
[1748683256405,10.36633856,2523.1,2523.0,0.07155339]
[1748683256603,0.7925,2522.7,2522.6,3.2078]
[1748683260718,0.79253,2522.6,2522.5,1.9248]
[1748683261214,0.79256,2522.5,2522.4,0.00594377]
[1748683261614,20.24566,2522.5,2522.4,0.00594377]
[1748683261821,0.79268,2522.1,2522.0,0.63]
[1748683264323,0.79268,2522.1,2522.0,0.70155339]
[1748683265424,0.79268,2522.1,2522.0,0.07155339]
[1748683266619,0.79268,2522.1,2522.0,1.42625339]
[1748683267523,0.79268,2522.1,2522.0,0.07155339]
[1748683271224,0.79268,2522.1,2522.0,1.36075339]
[1748683272626,0.79268,2522.1,2522.0,2.15347339]
[1748683272918,0.79268,2522.2,2522.1,0.79268]
[1748683273124,0.00594377,2522.3,2522.2,0.79265]
[1748683273519,3.876,2522.9,2522.5,0.79254]
[1748683273721,0.7925,2522.7,2522.6,2.5543]
[1748683273919,0.7925,2522.7,2522.6,1.2822]
[1748683274324,0.79265,2522.2,2522.1,3.903]
[1748683274622,0.79268,2522.1,2522.0,0.07155339]
[1748683275925,0.79268,2522.1,2522.0,0.75585339]
[1748683281433,2.63583377,2522.4,2522.0,0.75585339]
[1748683281634,0.79265,2522.2,2522.1,0.6199]
[1748683286933,0.79268,2522.1,2522.0,0.75585339]
[1748683287135,0.79268,2522.1,2522.0,0.07155339]
[1748683287329,0.79268,2522.1,2521.8,3.85204377]
[1748683287330,0.79275,2521.9,2521.8,0.00594377]
[1748683288139,2.11615,2521.9,2521.8,0.00594377]
[1748683288331,0.79281,2521.7,2521.6,1.2722]
[1748683288930,0.79284,2521.6,2521.5,3.2078]
[1748683289128,0.79287,2521.5,2521.4,0.6383]
[1748683289831,2.06477,2521.5,2521.4,0.6383]
[1748683290944,0.79294,2521.3,2521.2,0.63984377]
[1748683291442,0.79294,2521.3,2521.2,0.00594377]
[1748683291843,4.67294,2521.3,2521.2,0.00594377]
[1748683294241,4.67294,2521.3,2521.2,1.36744377]
[1748683294747,4.67294,2521.3,2521.2,1.43899716]
[1748683295047,4.67294,2521.3,2521.2,7.16e-06]
[1748683295249,4.90254196,2521.3,2521.2,7.16e-06]
[1748683295551,4.67294,2521.3,2521.2,7.16e-06]
[1748683295744,4.90234622,2521.3,2521.2,7.16e-06]
[1748683295948,4.9023477,2521.3,2521.2,7.16e-06]
[1748683296252,5.84629719,2521.3,2521.2,7.16e-06]
[1748683296645,6.07575631,2521.3,2521.2,7.16e-06]
[1748683297039,5.84629719,2521.3,2521.2,7.16e-06]
[1748683297343,6.07575746,2521.3,2521.2,7.16e-06]
[1748683297547,0.79312,2520.7,2520.6,0.6685]
[1748683298151,0.79316,2520.6,2520.5,3.2078]
[1748683299647,1.98294,2520.6,2520.2,0.6369]
[1748683299948,0.79325,2520.3,2520.2,0.6369]
[1748683300149,0.79325,2520.3,2520.2,2.0038]
[1748683301058,3.882,2520.5,2520.2,2.0038]
[1748683301255,0.79322,2520.4,2520.3,1.3669]
[1748683302957,7.15354,2520.7,2520.3,1.3669]
[1748683303255,0.79322,2520.4,2520.3,1.3669]
[1748683304251,3.2078,2520.7,2520.3,2.16012]
[1748683304453,0.79322,2520.4,2520.3,1.3669]
[1748683304658,3.2078,2520.7,2520.3,1.3669]
[1748683304950,0.79316,2520.6,2520.4,0.79322]
[1748683305162,0.79316,2520.6,2520.5,1.3539]
[1748683305457,0.00594377,2520.8,2520.7,0.79312]
[1748683306261,0.79903377,2520.8,2520.7,0.79312]
[1748683306753,0.00594377,2520.8,2520.7,0.79312]
[1748683307357,0.00594377,2520.8,2520.7,5.79312]
[1748683307552,0.00594377,2520.8,2520.7,4.00092]
[1748683308060,0.00594377,2520.8,2520.7,9.00092]
[1748683308660,0.00594377,2520.8,2520.7,12.89592]
[1748683309154,0.00594377,2520.8,2520.7,7.89592]
[1748683309649,0.00594377,2520.8,2520.7,12.89592]
[1748683310055,0.00594377,2520.8,2520.7,12.96747339]
[1748683314963,0.79297,2521.3,2521.2,0.79293]
[1748683316757,0.00594377,2521.5,2521.4,0.7929]
[1748683316952,0.79881377,2521.5,2521.4,0.7929]
[1748683317155,0.79881377,2521.5,2521.4,2.0275]
[1748683320565,0.79881377,2521.5,2521.4,1.2346]
[1748683320765,1.98817377,2521.5,2521.1,5.28258]
[1748683320960,0.79297,2521.2,2521.1,3.2078]
[1748683321268,0.79297,2521.2,2521.1,4.0008]
[1748683322165,0.79297,2521.2,2521.1,3.2078]
[1748683322366,2.11957,2521.2,2521.1,4.0008]
[1748683322660,2.11957,2521.2,2521.1,3.2078]
[1748683325973,0.6583,2521.3,2521.1,3.2078]
[1748683326266,0.6583,2521.3,2521.2,0.79297]
[1748683327670,1.45124,2521.3,2521.2,0.79297]
[1748683327869,0.6583,2521.3,2521.2,0.79297]
[1748683328270,1.45124,2521.3,2521.2,0.79297]
[1748683328971,0.79297,2521.2,2521.1,4.07232339]
[1748683330175,2.77276,2521.3,2521.2,0.79297]
[1748683330469,0.6583,2521.3,2521.2,0.79297]
[1748683330668,0.79294,2521.3,2521.2,1.2547]
[1748683330869,0.79297,2521.2,2521.1,3.27935339]
[1748683331070,0.79297,2521.2,2521.1,4.07234339]
[1748683331776,0.79296,2521.3,2521.2,0.79294]
[1748683331970,1.42564377,2521.5,2521.4,0.7929]
[1748683332476,1.42564377,2521.5,2521.2,1.2547]
[1748683332477,0.79294,2521.4,2521.3,0.79291]
[1748683333579,0.79294,2521.3,2521.2,2.04763]
[1748683333774,0.79297,2521.2,2521.1,7.97533339]
[1748683334174,0.79297,2521.2,2521.1,7.18235339]
[1748683338281,0.79297,2521.2,2521.1,3.97455339]
[1748683338778,0.79297,2521.2,2521.1,0.07155339]
[1748683339479,1.97483832,2521.2,2521.1,0.07155339]
[1748683340176,0.79297,2521.2,2521.1,0.07155339]
[1748683342087,1.96447489,2521.2,2521.1,0.07155339]
[1748683342683,0.79297,2521.2,2521.1,0.07155339]
[1748683347281,0.79296,2521.3,2521.1,2.06865339]
[1748683347588,0.79296,2521.3,2521.2,1.9203]
[1748683347789,0.79296,2521.3,2521.2,2.71327]
[1748683348192,0.79296,2521.3,2521.2,1.9203]
[1748683348884,0.79293,2521.4,2521.2,1.9203]
[1748683349092,0.79293,2521.4,2521.3,2.06003]
[1748683350191,0.79293,2521.4,2521.3,1.2671]
[1748683351787,0.79294,2521.3,2521.2,0.6532]
[1748683351986,0.79294,2521.3,2521.1,7.81665339]
[1748683351987,0.79297,2521.2,2521.1,7.81665339]
[1748683353696,0.79297,2521.2,2521.1,3.91365339]
[1748683353901,0.79297,2521.2,2521.1,0.70585339]
[1748683355596,0.79297,2521.2,2521.1,0.07155339]
[1748683357798,2.06437,2521.2,2521.1,0.07155339]
[1748683363994,3.23558879,2521.2,2521.1,0.07155339]
[1748683367700,1.96418879,2521.2,2521.1,0.07155339]
[1748683369805,0.79297,2521.2,2521.1,0.07155339]
[1748683371504,0.79297,2521.2,2521.1,1.40075339]
[1748683373407,0.79297,2521.2,2521.1,0.07155339]
[1748683377407,2.15877,2521.2,2521.1,0.07155339]
[1748683381815,3.33141356,2521.2,2521.1,0.07155339]
[1748683383114,1.96561356,2521.2,2521.1,0.07155339]
[1748683383811,3.25611356,2521.2,2521.1,0.07155339]
[1748683385911,1.96561356,2521.2,2521.1,0.07155339]
[1748683386306,1.96561356,2521.2,2521.1,1.31245339]
[1748683388617,1.96561356,2521.2,2521.1,0.07155339]
[1748683389819,3.24121356,2521.2,2521.1,0.07155339]
[1748683391321,3.47174674,2521.2,2521.1,0.07155339]
[1748683391522,3.24121356,2521.2,2521.1,0.07155339]
[1748683392625,1.96561356,2521.2,2521.1,0.07155339]
[1748683396230,3.21891356,2521.2,2521.1,0.07155339]
[1748683396627,3.45002026,2521.2,2521.1,0.07155339]
[1748683396828,3.21891356,2521.2,2521.1,0.07155339]
[1748683397235,3.45001915,2521.2,2521.1,0.07155339]
[1748683397435,3.45001917,2521.2,2521.1,0.07155339]
[1748683397641,3.21891356,2521.2,2521.1,0.07155339]
[1748683397933,3.45001957,2521.2,2521.1,0.07155339]
[1748683398339,3.21891356,2521.2,2521.1,0.07155339]
[1748683398532,3.45001489,2521.2,2521.1,0.07155339]
[1748683399039,2.27737133,2521.2,2521.1,0.07155339]
[1748683399234,2.04627,2521.2,2521.1,0.07155339]
[1748683399437,1.9667917,2521.2,2521.1,0.07155339]
[1748683399637,1.9667917,2521.2,2521.1,1.34055339]
[1748683403133,1.9667917,2521.2,2521.1,2.13355339]
[1748683403337,1.9667917,2521.2,2521.1,4.54835339]
[1748683404030,0.79297,2521.2,2521.1,4.54835339]
[1748683405040,0.79297,2521.2,2521.1,1.34055339]
[1748683405742,0.79297,2521.2,2521.1,2.13355339]
[1748683407536,0.79295,2521.3,2521.2,0.79294]
[1748683407835,0.79295,2521.3,2521.2,1.46254]
[1748683408332,0.79295,2521.3,2521.2,6.46254]
[1748683408735,0.79295,2521.3,2521.2,7.73944]
[1748683411446,0.79295,2521.3,2521.2,1.9465]